fUSD/lending_fUSD_20251224
["ID","MTS","AMOUNT","RATE_DAILY","PERIOD"]
[399608626,1766542263733,-293.409526,0.00032877,31]
[399608627,1766542263743,-151.0,0.00032877,31]
[399608628,1766542263753,-151.0,0.00032877,31]
[399608629,1766542263763,-151.0,0.00032877,31]
[399608630,1766542263774,-151.0,0.00032877,31]
[399608631,1766542263784,-163.670383,0.00032877,31]
[399608632,1766542263795,-151.0,0.00032877,31]
[399608633,1766542263806,-163.670383,0.00032877,31]
[399608634,1766542263815,-151.0,0.00032877,31]
[399608635,1766542263825,-163.670383,0.00032877,31]
[399608636,1766542263835,-192.24817,0.00032877,31]
[399608637,1766542263845,-163.670383,0.00032877,31]
[399608638,1766542263855,-163.670383,0.00032877,31]
[399608639,1766542263866,-163.670383,0.00032877,31]
[399608640,1766542263878,-163.670383,0.00032877,31]
[399608641,1766542263888,-151.0,0.00032877,31]
[399608642,1766542263897,-163.670383,0.00032877,31]
[399608643,1766542263907,-151.0,0.00032877,31]
[399608644,1766542263917,-163.670383,0.00032877,31]
[399608645,1766542263926,-151.0,0.00032877,31]
[399608646,1766542263936,-163.670383,0.00032877,31]
[399608647,1766542263946,-151.0,0.00032877,31]
[399608648,1766542263956,-163.670383,0.00032877,31]
[399608649,1766542263966,-151.0,0.00032877,31]
[399608650,1766542263975,-163.670383,0.00032877,31]
[399608651,1766542263986,-151.0,0.00032877,31]
[399608652,1766542263996,-163.670383,0.00032877,31]
[399608653,1766542264006,-151.0,0.00032877,31]
[399608654,1766542264016,-163.670383,0.00032877,31]
[399608655,1766542264026,-230.31516,0.00032877,31]
[399608656,1766542264036,-163.670383,0.00032877,31]
[399608657,1766542264047,-151.0,0.00032877,31]
[399608658,1766542264060,-163.670383,0.00032877,31]
[399608659,1766542264071,-151.0,0.00032877,31]
[399608660,1766542264081,-163.670383,0.00032877,31]
[399608661,1766542264092,-151.0,0.00032877,31]
[399608662,1766542264103,-163.670383,0.00032877,31]
[399608663,1766542264113,-151.0,0.00032877,31]
[399608664,1766542264125,-163.670383,0.00032877,31]
[399608665,1766542264136,-151.0,0.00032877,31]
[399608666,1766542264146,-163.670388,0.00032877,31]
[399608667,1766542264155,-151.0,0.00032877,31]
[399608668,1766542264166,-151.0,0.00032877,31]
[399608669,1766542264176,-151.0,0.00032877,31]
[399608670,1766542264186,-151.0,0.00032877,31]
[399608671,1766542264196,-151.0,0.00032877,31]
[399608672,1766542264206,-151.0,0.00032877,31]
[399608673,1766542264215,-151.0,0.00032877,31]
[399608674,1766542264225,-151.0,0.00032877,31]
[399608675,1766542264235,-175.992986,0.00032877,31]
[399608676,1766542264245,-151.0,0.00032877,31]
[399608677,1766542264256,-151.0,0.00032877,31]
[399608678,1766542264266,-151.0,0.00032877,31]
[399608679,1766542264275,-151.0,0.00032877,31]
[399608680,1766542264285,-151.0,0.00032877,31]
[399608681,1766542264295,-151.0,0.00032877,31]
[399608682,1766542264306,-151.0,0.00032877,31]
[399608683,1766542264316,-151.0,0.00032877,31]
[399608684,1766542264327,-151.0,0.00032877,31]
[399608685,1766542264339,-151.0,0.00032877,31]
[399608686,1766542264349,-151.0,0.00032877,31]
[399608687,1766542264360,-151.0,0.00032877,31]
[399608688,1766542264371,-151.0,0.00032877,31]
[399608689,1766542264381,-273.086021,0.00032877,31]
[399608690,1766542264393,-151.0,0.00032877,31]
[399608691,1766542264403,-151.0,0.00032877,31]
[399608692,1766542264413,-151.0,0.00032877,31]
[399608693,1766542264423,-151.0,0.00032877,31]
[399608694,1766542264434,-151.0,0.00032877,31]
[399608695,1766542264444,-151.0,0.00032877,31]
[399608696,1766542264455,-151.0,0.00032877,31]
[399608697,1766542264465,-151.0,0.00032877,31]
[399608698,1766542264476,-712.564024,0.00032877,31]
[399608699,1766542264486,-151.0,0.00032877,31]
[399608700,1766542264497,-287.463842,0.00032877,31]
[399608701,1766542264507,-151.0,0.00032877,31]
[399608702,1766542264516,-712.564024,0.00032877,31]
[399608703,1766542264526,-151.0,0.00032877,31]
[399608704,1766542264536,-712.564024,0.00032877,31]
[399608705,1766542264546,-151.0,0.00032877,31]
[399608706,1766542264557,-236.142415,0.00032877,31]
[399608707,1766542264568,-151.0,0.00032877,31]
[399608708,1766542264579,-712.564024,0.00032877,31]
[399608709,1766542264589,-712.564024,0.00032877,31]
[399608710,1766542264600,-153.608163,0.00032877,31]
[399608711,1766542264611,-712.564024,0.00032877,31]
[399608712,1766542264621,-151.0,0.00032877,31]
[399608713,1766542264631,-712.564024,0.00032877,31]
[399608714,1766542264640,-151.0,0.00032877,31]
[399608715,1766542264650,-712.564024,0.00032877,31]
[399608716,1766542264660,-151.0,0.00032877,31]
[399608717,1766542264671,-712.564024,0.00032877,31]
[399608718,1766542264682,-176.369104,0.00032877,31]
[399608719,1766542264692,-712.564024,0.00032877,31]
[399608720,1766542264702,-712.564024,0.00032877,31]
[399608721,1766542264713,-151.0,0.00032877,31]
[399608722,1766542264727,-712.564024,0.00032877,31]
[399608723,1766542264737,-151.0,0.00032877,31]
[399608724,1766542264747,-712.564024,0.00032877,31]
[399608725,1766542264758,-151.0,0.00032877,31]
[399608726,1766542264767,-712.564024,0.00032877,31]
[399608727,1766542264778,-238.426869,0.00032877,31]
[399608728,1766542264787,-238.426869,0.00032877,31]
[399608729,1766542264797,-712.564024,0.00032877,31]
[399608730,1766542264806,-238.426869,0.00032877,31]
[399608731,1766542264816,-712.564024,0.00032877,31]
[399608732,1766542264826,-185.362398,0.00032877,31]
[399608733,1766542264836,-238.426869,0.00032877,31]
[399608734,1766542264846,-712.564024,0.00032877,31]
[399608735,1766542264857,-712.564024,0.00032877,31]
[399608736,1766542264867,-238.426869,0.00032877,31]
[399608737,1766542264880,-712.564024,0.00032877,31]
[399608738,1766542264890,-238.426869,0.00032877,31]
[399608739,1766542264900,-712.564027,0.00032877,31]
[399608740,1766542264911,-238.426869,0.00032877,31]
[399608741,1766542264921,-238.426869,0.00032877,31]
[399608742,1766542264933,-165.331872,0.00032877,31]
[399608743,1766542264943,-238.426869,0.00032877,31]
[399608744,1766542264954,-165.331872,0.00032877,31]
[399608745,1766542264964,-238.426869,0.00032877,31]
[399608746,1766542264975,-165.331872,0.00032877,31]
[399608747,1766542264986,-238.426869,0.00032877,31]
[399608748,1766542264995,-238.426869,0.00032877,31]
[399608749,1766542265006,-165.331872,0.00032877,31]
[399608750,1766542265017,-238.426869,0.00032877,31]
[399608751,1766542265027,-165.331872,0.00032877,31]
[399608752,1766542265038,-238.426869,0.00032877,31]
[399608753,1766542265050,-165.331872,0.00032877,31]
[399608754,1766542265062,-238.426869,0.00032877,31]
[399608755,1766542265072,-165.331872,0.00032877,31]
[399608757,1766542265082,-151.0,0.00032877,31]
[399608758,1766542265093,-165.331872,0.00032877,31]
[399608759,1766542265104,-238.426869,0.00032877,31]
[399608761,1766542265115,-151.0,0.00032877,31]
[399608762,1766542265125,-151.0,0.00032877,31]
[399608763,1766542265137,-165.331872,0.00032877,31]
[399608764,1766542265147,-238.426869,0.00032877,31]
[399608765,1766542265157,-151.0,0.00032877,31]
[399608766,1766542265167,-151.0,0.00032877,31]
[399608767,1766542265178,-238.426869,0.00032877,31]
[399608768,1766542265188,-151.0,0.00032877,31]
[399608769,1766542265198,-165.331872,0.00032877,31]
[399608770,1766542265208,-154.007077,0.00032877,31]
[399608771,1766542265219,-238.426869,0.00032877,31]
[399608772,1766542265229,-151.0,0.00032877,31]
[399608773,1766542265239,-165.331872,0.00032877,31]
[399608774,1766542265248,-238.426868,0.00032877,31]
[399608775,1766542265258,-151.0,0.00032877,31]
[399608776,1766542265269,-165.331872,0.00032877,31]
[399608777,1766542265279,-158.185102,0.00032877,31]
[399608778,1766542265288,-298.137547,0.00032877,31]
[399608779,1766542265299,-165.331872,0.00032877,31]
[399608780,1766542265309,-165.331872,0.00032877,31]
[399608781,1766542265319,-151.0,0.00032877,31]
[399608782,1766542265329,-165.331872,0.00032877,31]
[399608783,1766542265339,-151.0,0.00032877,31]
[399608784,1766542265349,-165.331872,0.00032877,31]
[399608785,1766542265359,-151.0,0.00032877,31]
[399608786,1766542265369,-165.331872,0.00032877,31]
[399608787,1766542265379,-151.0,0.00032877,31]
[399608788,1766542265389,-165.331872,0.00032877,31]
[399608789,1766542265399,-165.331872,0.00032877,31]
[399608790,1766542265409,-165.331878,0.00032877,31]
[399608791,1766542265418,-151.0,0.00032877,31]
[399608792,1766542265429,-151.0,0.00032877,31]
[399608793,1766542265438,-151.0,0.00032877,31]
[399608794,1766542265449,-151.0,0.00032877,31]
[399608795,1766542265459,-151.0,0.00032877,31]
[399608796,1766542265469,-151.0,0.00032877,31]
[399608797,1766542265479,-151.0,0.00032877,31]
[399608798,1766542265488,-151.0,0.00032877,31]
[399608799,1766542265498,-151.0,0.00032877,31]
[399608800,1766542265507,-151.0,0.00032877,31]
[399608801,1766542265516,-151.0,0.00032877,31]
[399608802,1766542265526,-151.0,0.00032877,31]
[399608803,1766542265535,-151.0,0.00032877,31]
[399608804,1766542265545,-151.0,0.00032877,31]
[399608805,1766542265555,-151.0,0.00032877,31]
[399608806,1766542265564,-267.056744,0.00032877,31]
[399608807,1766542265574,-151.0,0.00032877,31]
[399608808,1766542265584,-152.331422,0.00032877,31]
[399608809,1766542265594,-152.465963,0.00032877,31]
[399608810,1766542265603,-176.588689,0.00032877,31]
[399608811,1766542265613,-151.0,0.00032877,31]
[399608812,1766542265623,-151.0,0.00032877,31]
[399608813,1766542265633,-151.0,0.00032877,31]
[399608814,1766542265643,-151.0,0.00032877,31]
[399608815,1766542265653,-151.0,0.00032877,31]
[399608816,1766542265663,-151.0,0.00032877,31]
[399608817,1766542265673,-151.0,0.00032877,31]
[399608818,1766542265683,-151.0,0.00032877,31]
[399608819,1766542265692,-178.462669,0.00032877,31]
[399608820,1766542265702,-151.0,0.00032877,31]
[399608821,1766542265712,-151.0,0.00032877,31]
[399608822,1766542265721,-151.0,0.00032877,31]
[399608823,1766542265731,-179.341366,0.00032877,31]
[399608824,1766542265741,-151.0,0.00032877,31]
[399608825,1766542265750,-151.0,0.00032877,31]
[399608826,1766542265761,-228.082978,0.00032877,31]
[399608827,1766542265770,-151.0,0.00032877,31]
[399608828,1766542265780,-151.0,0.00032877,31]
[399608829,1766542265790,-228.082978,0.00032877,31]
[399608830,1766542265800,-151.0,0.00032877,31]
[399608831,1766542265809,-151.0,0.00032877,31]
[399608832,1766542265819,-228.082978,0.00032877,31]
[399608833,1766542265828,-196.791148,0.00032877,31]
[399608834,1766542265837,-151.0,0.00032877,31]
[399608835,1766542265847,-228.082978,0.00032877,31]
[399608836,1766542265857,-151.0,0.00032877,31]
[399608837,1766542265867,-228.082978,0.00032877,31]
[399608838,1766542265878,-151.0,0.00032877,31]
[399608839,1766542265887,-228.082978,0.00032877,31]
[399608840,1766542265896,-228.082978,0.00032877,31]
[399608841,1766542265906,-228.082978,0.00032877,31]
[399608842,1766542265915,-228.082978,0.00032877,31]
[399608843,1766542265924,-228.082978,0.00032877,31]
[399608844,1766542265934,-228.082978,0.00032877,31]
[399608845,1766542265944,-228.082978,0.00032877,31]
[399608846,1766542265954,-228.082978,0.00032877,31]
[399608847,1766542265964,-228.082978,0.00032877,31]
[399608848,1766542265974,-228.082978,0.00032877,31]
[399608849,1766542265983,-228.082978,0.00032877,31]
[399608850,1766542265992,-151.0,0.00032877,31]
[399608851,1766542266002,-228.082978,0.00032877,31]
[399608852,1766542266012,-228.082978,0.00032877,31]
[399608853,1766542266022,-151.0,0.00032877,31]
[399608854,1766542266031,-228.082978,0.00032877,31]
[399608855,1766542266041,-151.0,0.00032877,31]
[399608856,1766542266051,-500.0,0.00032877,2]
[399608857,1766542266066,-500.0,0.00032877,2]
[399608858,1766542266076,-500.0,0.00032877,2]
[399608859,1766542266088,-410.56824139,0.00032877,2]
[399608860,1766542266099,-172.14,0.000329,14]
[399608861,1766542266109,-284.94,0.000329,14]
[399608862,1766542266119,-3168.19,0.000329,2]
[399608863,1766542266128,-177.724196,0.00033,4]
[399608864,1766542266141,-350.0,0.00033,30]
[399608865,1766542266151,-1947.52665666,0.00033,2]
[399608866,1766542266161,-1904.56162931,0.00033,2]
[399608867,1766542266171,-761.57397169,0.00033,2]
[399608868,1766542266181,-245.76,0.00033,14]
[399608869,1766542266191,-650.0,0.00033,2]
[399608870,1766542266201,-552.933232,0.00033,14]
[399608871,1766542266211,-447.03,0.000331,30]
[399608872,1766542266220,-714.19,0.00033165,2]
[399608873,1766542266230,-1474.2,0.00033174,3]
[399608874,1766542266240,-245.76,0.000333,14]
[399608875,1766542266250,-1204.2635747,0.000335,2]
[399608876,1766542266259,-245.76,0.000335,14]
[399608877,1766542266270,-151.33873241,0.00033592,2]
[399608878,1766542266280,-7045.4,0.000336,14]
[399608879,1766542266290,-400.0,0.00034,120]
[399608880,1766542266299,-163.21355269,0.00034056,2]
[399608881,1766542266308,-839.18,0.000342,30]
[399608882,1766542266321,-203.0,0.00034247,120]
[399608883,1766542266337,-4000.0,0.00034456,31]
[399608884,1766542266352,-1720.69481801,0.0003449,2]
[399608885,1766542266366,-284.94,0.000345,14]
[399608886,1766542266378,-3168.19,0.000345,2]
[399608887,1766542266389,-165.0,0.000345,60]
[399608888,1766542266404,-483.13530369,0.000345,2]
[399608889,1766542266417,-150.0,0.000346,2]
[399608890,1766542266431,-150.0,0.000346,2]
[399608891,1766542266444,-150.0,0.000346,2]
[399608892,1766542266458,-612.0,0.000346,2]
[399608893,1766542266472,-1326.0,0.000346,2]
[399608894,1766542266486,-3458.0,0.000346,2]
[399608895,1766542266499,-1609.0,0.000346,2]
[399608896,1766542266513,-468.0,0.000346,2]
[399608897,1766542266527,-1263.0,0.000346,2]
[399608898,1766542266538,-209.0,0.0003488,30]
[399608899,1766542266549,-7045.4,0.000349,14]
[399608900,1766542266564,-2449.89311948,0.00034949,47]
[399608901,1766542266578,-151.33873241,0.00034991,2]
[399608902,1766542266592,-1905.89550539,0.00035,2]
[399608903,1766542266607,-7323.84881784,0.00035,30]
[399608904,1766542266620,-447.03,0.00035,30]
[399608905,1766542266635,-154.1167746,0.00035,2]
[399608906,1766542266648,-200.000001,0.00035,7]
[399608907,1766542266663,-546818.8961567,0.00035,3]
[399608908,1766542267603,-151.0,0.00015486,2]
[399608909,1766542267620,-6533.0,0.00020537,2]
[399608910,1766542267632,-6533.0,0.00023537,2]
[399608911,1766542267644,-6533.0,0.00026537,2]
[399608912,1766542267655,-228.082969,0.00032877,31]
[399608913,1766542267667,-151.0,0.00032877,31]
[399608914,1766542267681,-151.0,0.00032877,31]
[399608915,1766542267693,-151.0,0.00032877,31]
[399608916,1766542267705,-151.0,0.00032877,31]
[399608917,1766542267718,-151.0,0.00032877,31]
[399608918,1766542267731,-151.0,0.00032877,31]
[399608919,1766542267744,-151.0,0.00032877,31]
[399608920,1766542267755,-151.0,0.00032877,31]
[399608921,1766542267767,-151.0,0.00032877,31]
[399608922,1766542267778,-151.0,0.00032877,31]
[399608923,1766542267790,-195.775253,0.00032877,31]
[399608924,1766542267801,-151.0,0.00032877,31]
[399608925,1766542267813,-151.0,0.00032877,31]
[399608926,1766542267825,-151.0,0.00032877,31]
[399608927,1766542267836,-151.0,0.00032877,31]
[399608928,1766542267848,-151.0,0.00032877,31]
[399608929,1766542267860,-22219.38339578,0.00035,3]
[399608930,1766542268147,-319.87824004,0.000169,2]
[399608934,1766542360615,-1899.63890605,0.00014477,2]
[399608935,1766542360647,-150.0,0.00014576,2]
[399608959,1766542685852,-2884.74,0.00014578,2]
[399608960,1766542685876,-250.0,0.00014677,2]
[399608961,1766542685900,-1200.0,0.00014776,2]
[399608962,1766542685924,-751.0,0.00014776,2]
[399608963,1766542685948,-300.0,0.00014776,2]
[399608964,1766542685971,-500.0,0.00014777,2]
[399608965,1766542685994,-500.0,0.00014777,2]
[399608966,1766542686017,-500.0,0.00014777,2]
[399608967,1766542686040,-500.0,0.00014777,2]
[399608968,1766542686062,-386.17549978,0.0001493,2]
[399608982,1766542876567,587.0,0.000226,120]
[399608984,1766543062868,4163.79984351,0.0001,2]
[399608985,1766543100449,500.0,0.00015073,2]
[399609043,1766543213222,-166.66,0.00015133,2]
[399609044,1766543213245,-250.0,0.0001514,2]
[399609045,1766543213266,-150.71,0.00015148,2]
[399609046,1766543213288,-84.70507572,0.00015173,2]
[399609047,1766543250589,500.0,0.00015073,2]
[399609056,1766543400350,500.0,0.00015033,2]
[399609072,1766543431887,-200.0,0.00015173,2]
[399609073,1766543431899,-500.0,0.00015173,2]
[399609074,1766543431910,-276.0,0.00015173,2]
[399609075,1766543431921,-2884.74,0.00015346,2]
[399609076,1766543431931,-166.66,0.00015451,2]
[399609077,1766543431941,-215.55,0.00015588,2]
[399609078,1766543431951,-200.0,0.00015603,2]
[399609079,1766543431961,-565.61,0.00015604,2]
[399609080,1766543431972,-166.66,0.0001577,2]
[399609081,1766543431983,-200.0,0.00015968,2]
[399609082,1766543431992,-763.0,0.00015998,2]
[399609083,1766543432002,-1647.43,0.00016,2]
[399609084,1766543432015,-168.0,0.00016048,2]
[399609085,1766543432025,-300.0,0.00016087,2]
[399609086,1766543432035,-300.0,0.00016087,2]
[399609087,1766543432045,-166.66,0.00016088,2]
[399609088,1766543432056,-2884.74,0.00016113,2]
[399609089,1766543432066,-5000.0059917,0.000162,5]
[399609090,1766543432076,-168.0,0.00016217,2]
[399609091,1766543432088,-166.66,0.00016407,2]
[399609092,1766543432099,-168.0,0.00016445,2]
[399609093,1766543432109,-250.0,0.00016646,2]
[399609095,1766543432128,-250.0,0.0001669,2]
[399609097,1766543432145,-250.0,0.0001669,2]
[399609098,1766543432155,-900.8626,0.00016699,2]
[399609100,1766543432171,-2261.2951,0.00016699,2]
[399609102,1766543432181,-32312.3153,0.00016699,2]
[399609104,1766543432191,-5334.52656922,0.00016699,2]
[399609105,1766543432202,-2500.0,0.000167,2]
[399609106,1766543432212,-163.21355269,0.00016708,2]
[399609107,1766543432222,-648.15878506,0.00016708,2]
[399609108,1766543432232,-164.17,0.00016712,2]
[399609109,1766543432242,-5334.5265692,0.00016724,2]
[399609110,1766543432252,-166.66,0.00016725,2]
[399609111,1766543432263,-648.15878501,0.00016732,2]
[399609112,1766543432273,-5334.5265692,0.00016749,2]
[399609113,1766543432283,-648.15878501,0.00016756,2]
[399609114,1766543432297,-5334.5265692,0.00016774,2]
[399609115,1766543432307,-648.15878501,0.0001678,2]
[399609116,1766543432317,-151.0,0.0001679,2]
[399609117,1766543432327,-151.0,0.0001679,2]
[399609118,1766543432337,-151.0,0.0001679,2]
[399609119,1766543432347,-151.0,0.0001679,2]
[399609120,1766543432357,-151.0,0.0001679,2]
[399609121,1766543432368,-151.0,0.0001679,2]
[399609122,1766543432378,-151.0,0.0001679,2]
[399609123,1766543432388,-151.0,0.0001679,2]
[399609124,1766543432398,-151.0,0.0001679,2]
[399609125,1766543432412,-151.0,0.0001679,2]
[399609126,1766543432422,-151.0,0.0001679,2]
[399609127,1766543432432,-151.0,0.0001679,2]
[399609128,1766543432443,-151.0,0.0001679,2]
[399609129,1766543432455,-151.0,0.0001679,2]
[399609130,1766543432465,-151.0,0.0001679,2]
[399609131,1766543432475,-151.0,0.0001679,2]
[399609132,1766543432856,-151.0,0.0001679,2]
[399609133,1766543432879,-151.0,0.0001679,2]
[399609134,1766543432890,-151.0,0.0001679,2]
[399609135,1766543432900,-153.43746121,0.0001679,2]
[399609136,1766543432910,-1453.44,0.0001679,2]
[399609137,1766543432920,-1453.44,0.0001679,2]
[399609138,1766543432930,-1453.44,0.0001679,2]
[399609139,1766543432940,-1453.44,0.0001679,2]
[399609140,1766543432949,-1453.44,0.0001679,2]
[399609141,1766543432959,-500.0,0.00016799,2]
[399609142,1766543432969,-418.37165734,0.00016799,2]
[399609143,1766543432979,-605.06747671,0.00016799,2]
[399609144,1766543432988,-500.0,0.00016799,2]
[399609145,1766543432998,-534.06568137,0.00016799,2]
[399609146,1766543433008,-500.0,0.00016799,2]
[399609147,1766543433018,-500.0,0.00016799,2]
[399609148,1766543433028,-853.48522902,0.00016799,2]
[399609149,1766543433037,-853.48522902,0.00016799,2]
[399609150,1766543433047,-307.21418666,0.00016799,2]
[399609151,1766543433057,-853.48522902,0.00016799,2]
[399609152,1766543433066,-853.48522902,0.00016799,2]
[399609153,1766543433075,-853.48522902,0.00016799,2]
[399609154,1766543433085,-853.48522902,0.00016799,2]
[399609155,1766543433095,-853.48522902,0.00016799,2]
[399609156,1766543433105,-853.48522902,0.00016799,2]
[399609157,1766543433115,-853.48522902,0.00016799,2]
[399609158,1766543433124,-853.48522902,0.00016799,2]
[399609159,1766543433134,-853.48522902,0.00016799,2]
[399609160,1766543433143,-853.48522902,0.00016799,2]
[399609161,1766543433154,-853.48522902,0.00016799,2]
[399609162,1766543433164,-853.48522902,0.00016799,2]
[399609163,1766543433173,-853.48522902,0.00016799,2]
[399609164,1766543433183,-853.48522902,0.00016799,2]
[399609165,1766543433192,-853.48522902,0.00016799,2]
[399609166,1766543433202,-853.48522902,0.00016799,2]
[399609167,1766543433211,-853.48522902,0.00016799,2]
[399609168,1766543433220,-853.48522902,0.00016799,2]
[399609169,1766543433230,-853.48522902,0.00016799,2]
[399609170,1766543433240,-853.48522902,0.00016799,2]
[399609171,1766543433250,-853.48522902,0.00016799,2]
[399609172,1766543433259,-853.48522902,0.00016799,2]
[399609173,1766543433270,-853.48522902,0.00016799,2]
[399609174,1766543433279,-853.48522902,0.00016799,2]
[399609175,1766543433289,-853.48522902,0.00016799,2]
[399609176,1766543433299,-853.48522902,0.00016799,2]
[399609177,1766543433309,-853.48522902,0.00016799,2]
[399609178,1766543433318,-853.48522902,0.00016799,2]
[399609179,1766543433328,-853.48522902,0.00016799,2]
[399609180,1766543433338,-853.48522902,0.00016799,2]
[399609181,1766543433348,-853.48522902,0.00016799,2]
[399609182,1766543433358,-853.48522902,0.00016799,2]
[399609183,1766543433367,-853.48522902,0.00016799,2]
[399609184,1766543433377,-853.48522902,0.00016799,2]
[399609185,1766543433387,-853.48522902,0.00016799,2]
[399609186,1766543433397,-853.48522902,0.00016799,2]
[399609187,1766543433410,-853.48522902,0.00016799,2]
[399609188,1766543433420,-853.48522902,0.00016799,2]
[399609189,1766543433430,-853.48522902,0.00016799,2]
[399609190,1766543433439,-853.48522902,0.00016799,2]
[399609191,1766543433450,-853.48522902,0.00016799,2]
[399609192,1766543433459,-853.48522902,0.00016799,2]
[399609193,1766543433469,-853.48522902,0.00016799,2]
[399609194,1766543433480,-853.48522902,0.00016799,2]
[399609195,1766543433490,-853.48522902,0.00016799,2]
[399609196,1766543433500,-853.48522902,0.00016799,2]
[399609197,1766543433510,-853.48522902,0.00016799,2]
[399609198,1766543433519,-853.48522902,0.00016799,2]
[399609199,1766543433529,-853.48522902,0.00016799,2]
[399609200,1766543433539,-853.48522902,0.00016799,2]
[399609201,1766543433548,-853.48522902,0.00016799,2]
[399609202,1766543433558,-853.48522902,0.00016799,2]
[399609203,1766543433567,-853.48522902,0.00016799,2]
[399609204,1766543433578,-851.6036794,0.00016799,2]
[399609205,1766543433587,-851.6036794,0.00016799,2]
[399609206,1766543433597,-851.6036794,0.00016799,2]
[399609207,1766543433606,-851.6036794,0.00016799,2]
[399609208,1766543433616,-851.6036794,0.00016799,2]
[399609209,1766543433625,-851.6036794,0.00016799,2]
[399609210,1766543433635,-851.6036794,0.00016799,2]
[399609211,1766543433644,-851.6036794,0.00016799,2]
[399609212,1766543433654,-851.6036794,0.00016799,2]
[399609213,1766543433665,-851.6036794,0.00016799,2]
[399609214,1766543433675,-851.6036794,0.00016799,2]
[399609215,1766543433685,-851.6036794,0.00016799,2]
[399609216,1766543433695,-851.6036794,0.00016799,2]
[399609217,1766543433705,-851.6036794,0.00016799,2]
[399609218,1766543433715,-851.6036794,0.00016799,2]
[399609219,1766543433724,-851.6036794,0.00016799,2]
[399609220,1766543433734,-851.6036794,0.00016799,2]
[399609221,1766543433743,-851.6036794,0.00016799,2]
[399609222,1766543433754,-851.6036794,0.00016799,2]
[399609223,1766543433764,-851.6036794,0.00016799,2]
[399609224,1766543433774,-851.6036794,0.00016799,2]
[399609225,1766543433783,-851.6036794,0.00016799,2]
[399609226,1766543433793,-851.6036794,0.00016799,2]
[399609227,1766543433803,-851.6036794,0.00016799,2]
[399609228,1766543433813,-851.6036794,0.00016799,2]
[399609229,1766543433823,-851.60367942,0.00016799,2]
[399609230,1766543433833,-851.60367942,0.00016799,2]
[399609231,1766543433843,-851.60367942,0.00016799,2]
[399609232,1766543433852,-851.60367942,0.00016799,2]
[399609233,1766543433863,-851.60367942,0.00016799,2]
[399609234,1766543433873,-851.60367942,0.00016799,2]
[399609235,1766543433883,-851.60367942,0.00016799,2]
[399609236,1766543433892,-851.60367942,0.00016799,2]
[399609237,1766543433902,-460.94,0.00016799,2]
[399609238,1766543433912,-854.798,0.00016799,2]
[399609239,1766543433922,-160.631,0.00016799,2]
[399609240,1766543433932,-500.0,0.00016799,2]
[399609241,1766543433942,-500.0,0.00016799,2]
[399609242,1766543433952,-500.0,0.00016799,2]
[399609243,1766543433962,-500.0,0.00016799,2]
[399609244,1766543433972,-500.0,0.00016799,2]
[399609245,1766543433982,-156.64046726,0.00016799,2]
[399609246,1766543433993,-5334.5265692,0.00016799,2]
[399609247,1766543434003,-1000000.0,0.000168,2]
[399609248,1766543434013,-648.15878501,0.00016804,2]
[399609249,1766543434023,-168.0,0.00016808,2]
[399609250,1766543434033,-222.1951471,0.00016825,2]
[399609251,1766543434571,-5112.3314221,0.00016825,2]
[399609252,1766543434582,-648.15878501,0.00016829,2]